lending/lending_fUSD_20241120
["ID","MTS","AMOUNT","RATE_DAILY","PERIOD"]
[342788916,1732140787463,-1250.26,0.00057534,120]
[342788917,1732140787473,-982.33,0.00057534,120]
[342788918,1732140787482,-500.0,0.00057534,120]
[342788919,1732140787492,-667.62,0.00057534,120]
[342788920,1732140787503,-500.0,0.00057534,120]
[342788921,1732140787512,-500.0,0.00057534,120]
[342788922,1732140787522,-609.95,0.00057534,120]
[342788923,1732140787532,-500.0,0.00057534,120]
[342788924,1732140787541,-500.0,0.00057534,120]
[342788925,1732140787551,-808.05,0.00057534,120]
[342788926,1732140787561,-522.08,0.00057534,120]
[342788927,1732140787571,-1111.01,0.00057534,120]
[342788928,1732140787580,-671.78,0.00057534,120]
[342788929,1732140787590,-500.0,0.00057534,120]
[342788930,1732140787600,-1704.12,0.00057534,120]
[342788931,1732140787610,-2102.13,0.00057534,120]
[342788932,1732140787620,-500.0,0.00057534,120]
[342788933,1732140787629,-907.83,0.00057534,120]
[342788934,1732140787639,-500.0,0.00057534,120]
[342788935,1732140787648,-1034.91,0.00057534,120]
[342788936,1732140787658,-500.0,0.00057534,120]
[342788937,1732140787667,-675.74,0.00057534,120]
[342788938,1732140787677,-5007.0,0.00057534,120]
[342788939,1732140787687,-2296.76,0.00057534,20]
[342788940,1732140787697,-500.0,0.00057534,120]
[342788941,1732140787706,-500.0,0.00057534,120]
[342788942,1732140787715,-500.0,0.00057534,120]
[342788943,1732140787727,-500.0,0.00057534,120]
[342788944,1732140787737,-798.21,0.00057534,120]
[342788945,1732140787746,-500.0,0.00057534,120]
[342788946,1732140787755,-500.0,0.00057534,120]
[342788947,1732140787765,-647.62,0.00057534,120]
[342788948,1732140787775,-500.0,0.00057534,120]
[342788949,1732140787784,-2489.82,0.00057534,120]
[342788950,1732140787794,-2045.61,0.00057534,120]
[342788951,1732140787804,-500.0,0.00057534,120]
[342788952,1732140787813,-500.0,0.00057534,120]
[342788953,1732140787823,-500.0,0.00057534,120]
[342788954,1732140787832,-500.0,0.00057534,120]
[342788955,1732140787842,-1208.94,0.00057534,120]
[342788956,1732140787853,-721.64,0.00057534,120]
[342788957,1732140787862,-972.27,0.00057534,120]
[342788958,1732140787871,-508.99990433,0.00057534,120]
[342788959,1732140787881,-1591.78,0.00057534,120]
[342788960,1732140787891,-1887.72,0.00057534,120]
[342788961,1732140787901,-500.0,0.00057534,120]
[342788962,1732140787912,-850.0,0.00057534,120]
[342788963,1732140787921,-852.01,0.00057534,120]
[342788964,1732140787932,-872.84,0.00057534,120]
[342788965,1732140787943,-271.01962399,0.00057534,120]
[342788966,1732140787953,-500.0,0.00057534,120]
[342788967,1732140787963,-500.0,0.00057534,120]
[342788968,1732140787973,-500.0,0.00057534,120]
[342788969,1732140787983,-846.36,0.00057534,120]
[342788970,1732140787992,-865.82,0.00057534,120]
[342788971,1732140788002,-1191.88,0.00057534,120]
[342788972,1732140788012,-1792.7,0.00057534,120]
[342788973,1732140788023,-5749.44,0.00057534,120]
[342788974,1732140788032,-500.0,0.00057534,120]
[342788975,1732140788043,-500.0,0.00057534,120]
[342788976,1732140788055,-500.0,0.00057534,120]
[342788977,1732140788065,-706.66,0.00057534,120]
[342788978,1732140788075,-500.0,0.00057534,120]
[342788979,1732140788087,-669.11,0.00057534,120]
[342788980,1732140788097,-571.98,0.00057534,120]
[342788981,1732140788107,-500.0,0.00057534,120]
[342788982,1732140788118,-688.41,0.00057534,120]
[342788983,1732140788129,-710.75,0.00057534,120]
[342788984,1732140788140,-1092.67,0.00057534,120]
[342788985,1732140788151,-2203.93,0.00057534,120]
[342788986,1732140788165,-600.76,0.00057534,120]
[342788987,1732140788175,-723.74,0.00057534,120]
[342788988,1732140788185,-962.75,0.00057534,120]
[342788989,1732140788195,-988.55,0.00057534,120]
[342788990,1732140788206,-690.54,0.00057534,120]
[342788991,1732140788216,-2304.78,0.00057534,120]
[342788992,1732140788226,-500.0,0.00057534,120]
[342788993,1732140788235,-843.9,0.00057534,120]
[342788994,1732140788247,-500.0,0.00057534,120]
[342788995,1732140788258,-500.0,0.00057534,120]
[342788996,1732140788268,-1647.87,0.00057534,120]
[342788997,1732140788277,-850.55,0.00057534,120]
[342788998,1732140788287,-500.0,0.00057534,120]
[342788999,1732140788298,-809.67,0.00057534,120]
[342789000,1732140788307,-683.97,0.00057534,120]
[342789001,1732140788319,-834.1,0.00057534,120]
[342789002,1732140788335,-914.77,0.00057534,120]
[342789003,1732140788354,-1141.14,0.00057534,120]
[342789004,1732140788364,-500.0,0.00057534,120]
[342789005,1732140788373,-500.0,0.00057534,120]
[342789006,1732140788383,-624.59,0.00057534,120]
[342789007,1732140788392,-1109.8,0.00057534,120]
[342789008,1732140788402,-500.0,0.00057534,120]
[342789009,1732140788412,-1752.52,0.00057534,120]
[342789010,1732140788421,-1096.46,0.00057534,120]
[342789011,1732140788431,-500.0,0.00057534,120]
[342789012,1732140788440,-950.07,0.00057534,120]
[342789013,1732140788450,-435.06321178,0.00057534,120]
[342789014,1732140788460,-1422.3,0.00057534,120]
[342789015,1732140788469,-2142.92,0.00057534,120]
[342789016,1732140788480,-829.0,0.00057534,120]
[342789017,1732140788490,-500.0,0.00057534,120]
[342789018,1732140788500,-575.3,0.00057534,120]
[342789019,1732140788509,-500.0,0.00057534,120]
[342789020,1732140788519,-737.82,0.00057534,120]
[342789021,1732140788529,-500.0,0.00057534,120]
[342789022,1732140788538,-666.21,0.00057534,120]
[342789023,1732140788548,-1778.99,0.00057534,120]
[342789024,1732140788557,-1715.56,0.00057534,120]
[342789025,1732140788566,-500.0,0.00057534,120]
[342789026,1732140788576,-1062.65,0.00057534,120]
[342789027,1732140788586,-500.0,0.00057534,120]
[342789028,1732140788595,-2346.15,0.00057534,120]
[342789029,1732140788605,-500.0,0.00057534,120]
[342789030,1732140788615,-500.0,0.00057534,120]
[342789031,1732140788625,-949.47,0.00057534,120]
[342789032,1732140788634,-1351.22,0.00057534,120]
[342789033,1732140788643,-888.32,0.00057534,120]
[342789034,1732140788653,-642.33,0.00057534,120]
[342789035,1732140788663,-880.81,0.00057534,120]
[342789036,1732140788672,-597.52,0.00057534,120]
[342789037,1732140788681,-6141.54,0.00057534,120]
[342789038,1732140788691,-500.0,0.00057534,120]
[342789039,1732140788700,-1511.19,0.00057534,120]
[342789040,1732140788710,-1086.04,0.00057534,120]
[342789041,1732140788719,-668.34,0.00057534,120]
[342789042,1732140788729,-1351.32,0.00057534,120]
[342789043,1732140788738,-1492.04,0.00057534,120]
[342789044,1732140788747,-926.38,0.00057534,120]
[342789045,1732140788757,-695.0,0.00057534,120]
[342789046,1732140788767,-500.0,0.00057534,120]
[342789047,1732140788776,-5287.99,0.00057534,120]
[342789048,1732140788785,-500.0,0.00057534,120]
[342789049,1732140788795,-500.0,0.00057534,120]
[342789050,1732140788804,-845.23,0.00057534,120]
[342789051,1732140788815,-1482.2,0.00057534,120]
[342789052,1732140788826,-500.0,0.00057534,120]
[342789053,1732140788835,-500.0,0.00057534,120]
[342789054,1732140788844,-1260.12,0.00057534,120]
[342789055,1732140788853,-500.0,0.00057534,120]
[342789056,1732140788864,-1283.29,0.00057534,120]
[342789057,1732140788874,-1393.35,0.00057534,120]
[342789058,1732140788884,-500.0,0.00057534,120]
[342789059,1732140788898,-500.0,0.00057534,120]
[342789060,1732140788908,-500.0,0.00057534,120]
[342789061,1732140788917,-500.0,0.00057534,120]
[342789062,1732140788926,-2642.2,0.00057534,120]
[342789063,1732140788935,-1536.4,0.00057534,120]
[342789064,1732140788945,-3168.55,0.00057534,120]
[342789065,1732140788954,-500.0,0.00057534,120]
[342789066,1732140788963,-500.0,0.00057534,120]
[342789067,1732140788971,-827.35,0.00057534,120]
[342789068,1732140788987,-500.0,0.00057534,120]
[342789069,1732140788995,-500.0,0.00057534,120]
[342789070,1732140789005,-1702.89,0.00057534,120]
[342789071,1732140789014,-500.0,0.00057534,120]
[342789072,1732140789024,-500.0,0.00057534,120]
[342789073,1732140789033,-641.78,0.00057534,120]
[342789074,1732140789042,-1344.44,0.00057534,120]
[342789075,1732140789051,-1090.73,0.00057534,120]
[342789076,1732140789061,-52850.67,0.00057534,120]
[342789077,1732140789070,-573.92114881,0.00057534,120]
[342789078,1732140789395,-1753.45,0.00057534,120]
[342789079,1732140789407,-1006.78,0.00057534,120]
[342789080,1732140789417,-621.4154,0.00057534,120]
[342789081,1732140789427,-1064.88,0.00057534,120]
[342789082,1732140789437,-497.30270204,0.00057534,120]
[342789083,1732140789447,-500.0,0.00057534,120]
[342789084,1732140789456,-622.97,0.00057534,120]
[342789085,1732140789465,-3042.17,0.00057534,120]
[342789086,1732140789476,-1736.39,0.00057534,120]
[342789087,1732140789486,-2339.16,0.00057534,120]
[342789088,1732140789495,-700.57,0.00057534,120]
[342789089,1732140789505,-585.35,0.00057534,120]
[342789090,1732140789515,-523.5,0.00057534,120]
[342789091,1732140789525,-2627.11,0.00057534,120]
[342789092,1732140789536,-1522.74,0.00057534,120]
[342789093,1732140789545,-1766.0,0.00057534,120]
[342789094,1732140789555,-500.0,0.00057534,120]
[342789095,1732140789566,-693.99,0.00057534,120]
[342789096,1732140789575,-5335.95,0.00057534,120]
[342789097,1732140789585,-500.0,0.00057534,120]
[342789098,1732140789595,-973.18,0.00057534,120]
[342789099,1732140789604,-500.0,0.00057534,120]
[342789100,1732140789614,-500.0,0.00057534,120]
[342789101,1732140789623,-778.26,0.00057534,120]
[342789102,1732140789633,-500.0,0.00057534,120]
[342789103,1732140789642,-561.95,0.00057534,120]
[342789104,1732140789652,-868.31,0.00057534,120]
[342789105,1732140789661,-1122.37,0.00057534,120]
[342789106,1732140789672,-400.36,0.00057534,7]
[342789107,1732140789681,-620.69,0.00057534,120]
[342789108,1732140789691,-1223.49,0.00057534,120]
[342789109,1732140789700,-500.0,0.00057534,120]
[342789110,1732140789710,-1516.54,0.00057534,120]
[342789111,1732140789719,-4704.32,0.00057534,120]
[342789112,1732140789732,-1041.7,0.00057534,120]
[342789113,1732140789742,-500.0,0.00057534,120]
[342789114,1732140789751,-1384.57,0.00057534,120]
[342789115,1732140789761,-1309.89,0.00057534,120]
[342789116,1732140789772,-525.76,0.00057534,120]
[342789117,1732140789782,-500.0,0.00057534,120]
[342789118,1732140789794,-500.0,0.00057534,120]
[342789119,1732140789803,-2257.06,0.00057534,120]
[342789120,1732140789813,-2012.7,0.00057534,120]
[342789121,1732140789823,-500.0,0.00057534,120]
[342789122,1732140789833,-500.0,0.00057534,120]
[342789123,1732140789842,-656.82,0.00057534,120]
[342789124,1732140789852,-1047.88,0.00057534,120]
[342789125,1732140789861,-427.04789008,0.00057534,120]
[342789126,1732140789870,-500.0,0.00057534,120]
[342789127,1732140789879,-1177.9,0.00057534,120]
[342789128,1732140789888,-1603.42,0.00057534,120]
[342789129,1732140789898,-500.0,0.00057534,120]
[342789130,1732140789907,-1567.54,0.00057534,120]
[342789131,1732140789917,-500.0,0.00057534,120]
[342789132,1732140789926,-834.44,0.00057534,120]
[342789133,1732140789936,-500.0,0.00057534,120]
[342789134,1732140789946,-500.0,0.00057534,120]
[342789135,1732140789956,-2004.44,0.00057534,120]
[342789136,1732140789965,-1050.71,0.00057534,120]
[342789137,1732140789976,-500.0,0.00057534,120]
[342789138,1732140789985,-1803.54,0.00057534,120]
[342789139,1732140789995,-650.66,0.00057534,120]
[342789140,1732140790005,-516.91,0.00057534,120]
[342789141,1732140790014,-500.0,0.00057534,120]
[342789142,1732140790024,-500.0,0.00057534,120]
[342789143,1732140790034,-500.0,0.00057534,120]
[342789144,1732140790043,-4162.19,0.00057534,120]
[342789145,1732140790054,-950.3,0.00057534,120]
[342789146,1732140790064,-500.0,0.00057534,120]
[342789147,1732140790073,-1325.24,0.00057534,120]
[342789148,1732140790083,-729.88,0.00057534,120]
[342789149,1732140790093,-1437.64,0.00057534,120]
[342789150,1732140790102,-951.19,0.00057534,120]
[342789151,1732140790112,-500.0,0.00057534,120]
[342789152,1732140790122,-739.2,0.00057534,120]
[342789153,1732140790132,-711.16,0.00057534,120]
[342789154,1732140790142,-35063.23,0.00057534,120]
[342789155,1732140790151,-500.0,0.00057534,120]
[342789156,1732140790165,-758.38,0.00057534,120]
[342789157,1732140790174,-500.0,0.00057534,120]
[342789158,1732140790184,-500.0,0.00057534,120]
[342789159,1732140790194,-382.63216282,0.00057534,120]
[342789160,1732140790206,-1066.88,0.00057534,120]
[342789161,1732140790215,-500.0,0.00057534,120]
[342789162,1732140790224,-604.09,0.00057534,120]
[342789163,1732140790235,-1309.97,0.00057534,120]
[342789164,1732140790245,-516.9,0.00057534,120]
[342789165,1732140790254,-1271.19,0.00057534,120]
[342789166,1732140790265,-1055.78,0.00057534,120]
[342789167,1732140790275,-1776.53,0.00057534,120]
[342789168,1732140790285,-2027.31,0.00057534,120]
[342789169,1732140790294,-2957.46,0.00057534,120]
[342789170,1732140790304,-565.96,0.00057534,120]
[342789171,1732140790314,-3450.26,0.00057534,120]
[342789172,1732140790323,-1015.77,0.00057534,120]
[342789173,1732140790333,-500.0,0.00057534,120]
[342789174,1732140790344,-5653.29,0.00057534,120]
[342789175,1732140790353,-2531.55,0.00057534,120]
[342789176,1732140790363,-1396.17,0.00057534,120]
[342789177,1732140790372,-699.76,0.00057534,120]
[342789178,1732140790381,-578.1,0.00057534,120]
[342789179,1732140790391,-1045.04,0.00057534,120]
[342789180,1732140790401,-1833.67,0.00057534,120]
[342789181,1732140790410,-500.0,0.00057534,120]
[342789182,1732140790421,-671.36,0.00057534,120]
[342789183,1732140790431,-500.0,0.00057534,120]
[342789184,1732140790441,-1250.43,0.00057534,120]
[342789185,1732140790451,-618.56,0.00057534,120]
[342789186,1732140790462,-1529.97,0.00057534,120]
[342789187,1732140790472,-916.63,0.00057534,120]
[342789188,1732140790484,-7124.81,0.00057534,120]
[342789189,1732140790494,-1979.2,0.00057534,120]
[342789190,1732140790504,-1114.64,0.00057534,120]
[342789191,1732140790513,-500.0,0.00057534,120]
[342789192,1732140790523,-1049.5,0.00057534,120]
[342789193,1732140790535,-500.0,0.00057534,120]
[342789194,1732140790545,-1449.91,0.00057534,120]
[342789195,1732140790554,-500.0,0.00057534,120]
[342789196,1732140790564,-2536.25,0.00057534,120]
[342789197,1732140790574,-3951.61,0.00057534,120]
[342789198,1732140790584,-2472.73,0.00057534,120]
[342789199,1732140790594,-500.0,0.00057534,120]
[342789200,1732140790604,-500.0,0.00057534,120]
[342789201,1732140790614,-500.0,0.00057534,120]
[342789202,1732140790624,-786.55,0.00057534,120]
[342789203,1732140790633,-500.0,0.00057534,120]
[342789204,1732140790643,-4870.15,0.00057534,120]
[342789205,1732140790653,-883.86,0.00057534,120]
[342789206,1732140790663,-2000.0,0.00057534,30]
[342789207,1732140790674,-500.0,0.00057534,120]
[342789208,1732140790683,-4533.42,0.00057534,120]
[342789209,1732140790694,-636.47,0.00057534,120]
[342789210,1732140790704,-851.5,0.00057534,120]
[342789211,1732140790714,-1816.21,0.00057534,120]
[342789212,1732140790725,-616.92,0.00057534,120]
[342789213,1732140790734,-1014.23,0.00057534,120]
[342789214,1732140790744,-6811.17,0.00057534,120]
[342789215,1732140790753,-487.73993175,0.00057534,120]
[342789216,1732140790762,-500.0,0.00057534,120]
[342789217,1732140790772,-500.0,0.00057534,120]
[342789218,1732140790781,-500.0,0.00057534,120]
[342789219,1732140790790,-1332.89,0.00057534,120]
[342789220,1732140790800,-753.95,0.00057534,120]
[342789221,1732140790809,-10722.81,0.00057534,120]
[342789222,1732140790818,-1359.85,0.00057534,120]
[342789223,1732140790828,-2324.44,0.00057534,120]
[342789224,1732140790838,-535.04,0.00057534,120]
[342789225,1732140790848,-500.0,0.00057534,120]
[342789226,1732140790858,-4406.16,0.00057534,120]
[342789227,1732140790868,-1128.91,0.00057534,120]
[342789228,1732140790878,-665.96,0.00057534,120]
[342789229,1732140790888,-980.99,0.00057534,120]
[342789230,1732140790897,-580.64,0.00057534,120]
[342789231,1732140790906,-892.8,0.00057534,120]
[342789232,1732140790916,-1436.75,0.00057534,120]
[342789233,1732140790925,-558.99,0.00057534,120]
[342789234,1732140790935,-778.22,0.00057534,120]
[342789235,1732140790945,-1153.44,0.00057534,7]
[342789236,1732140790956,-2548.81,0.00057534,120]
[342789237,1732140790966,-3675.23,0.00057534,120]
[342789238,1732140790976,-500.0,0.00057534,120]
[342789239,1732140790986,-298.05135136,0.00057534,120]
[342789240,1732140790995,-3167.44,0.00057534,120]
[342789241,1732140791005,-2249.83,0.00057534,120]
[342789242,1732140791014,-500.0,0.00057534,120]
[342789243,1732140791024,-11179.92,0.00057534,21]
[342789244,1732140791033,-500.0,0.00057534,120]
[342789245,1732140791043,-500.0,0.00057534,120]
[342789246,1732140791052,-859.5,0.00057534,120]
[342789247,1732140791061,-3662.75,0.00057534,120]
[342789248,1732140791071,-922.45,0.00057534,120]
[342789249,1732140791081,-500.0,0.00057534,120]
[342789250,1732140791090,-500.0,0.00057534,120]
[342789251,1732140791099,-1994.35,0.00057534,120]
[342789252,1732140791109,-500.0,0.00057534,120]
[342789253,1732140791118,-1363.9,0.00057534,120]
[342789254,1732140791128,-66449.02,0.00057534,5]
[342789255,1732140791137,-1162.72,0.00057534,120]
[342789256,1732140791147,-1114.06,0.00057534,120]
[342789257,1732140791156,-1815.23,0.00057534,120]
[342789258,1732140791170,-1159.58,0.00057534,120]
[342789259,1732140791179,-500.0,0.00057534,120]
[342789260,1732140791189,-500.0,0.00057534,120]
[342789261,1732140791200,-2826.01,0.00057534,120]
[342789262,1732140791210,-6111.41,0.00057534,120]
[342789263,1732140791219,-500.0,0.00057534,120]
[342789264,1732140791231,-500.0,0.00057534,120]
[342789265,1732140791242,-1031.65,0.00057534,120]
[342789266,1732140791252,-532.59,0.00057534,120]
[342789267,1732140791261,-754.16,0.00057534,120]
[342789268,1732140791271,-500.0,0.00057534,120]
[342789269,1732140791280,-553.58,0.00057534,120]
[342789270,1732140791290,-500.0,0.00057534,120]
[342789271,1732140791300,-3918.3,0.00057534,120]
[342789272,1732140791309,-212.04463224,0.00057534,120]
[342789273,1732140791318,-687.41,0.00057534,120]
[342789274,1732140791328,-2233.29,0.00057534,120]
[342789275,1732140791337,-2901.67,0.00057534,120]
[342789276,1732140791347,-500.0,0.00057534,120]
[342789277,1732140791357,-1693.94,0.00057534,120]
[342789278,1732140791367,-1140.89,0.00057534,120]
[342789279,1732140791377,-743.27,0.00057534,120]
[342789280,1732140791387,-884.65,0.00057534,120]
[342789281,1732140791398,-4798.42,0.00057534,120]
[342789282,1732140791408,-500.0,0.00057534,120]
[342789283,1732140791418,-1609.97,0.00057534,120]
[342789284,1732140791428,-589.18,0.00057534,120]
[342789285,1732140791437,-500.0,0.00057534,120]
[342789286,1732140791446,-548.16,0.00057534,120]
[342789287,1732140791455,-1086.88,0.00057534,120]
[342789288,1732140791464,-1158.88,0.00057534,120]
[342789289,1732140791475,-725.57,0.00057534,120]
[342789290,1732140791485,-842.19,0.00057534,120]
[342789291,1732140791495,-500.0,0.00057534,120]
[342789292,1732140791505,-7009.95,0.00057534,120]
[342789293,1732140791515,-500.0,0.00057534,120]
[342789294,1732140791524,-2713.37,0.00057534,120]
[342789295,1732140791534,-2674.97,0.00057534,120]
[342789296,1732140791544,-1095.19,0.00057534,120]
[342789297,1732140791554,-3162.29,0.00057534,120]
[342789298,1732140791564,-500.0,0.00057534,120]
[342789299,1732140791574,-500.0,0.00057534,120]
[342789300,1732140791583,-4873.91,0.00057534,120]
[342789301,1732140791593,-5192.12,0.00057534,120]
[342789302,1732140791603,-6968.45,0.00057534,60]
[342789303,1732140791612,-500.0,0.00057534,120]
[342789304,1732140791624,-788.84,0.00057534,120]
[342789305,1732140791634,-500.0,0.00057534,120]
[342789306,1732140791644,-801.02,0.00057534,120]
[342789307,1732140791654,-500.0,0.00057534,120]
[342789308,1732140791663,-565.84,0.00057534,120]
[342789309,1732140791672,-736.59,0.00057534,120]
[342789310,1732140791683,-778.41,0.00057534,120]
[342789311,1732140791692,-2123.81,0.00057534,120]
[342789312,1732140791701,-1135.51,0.00057534,120]
[342789313,1732140791710,-1176.11,0.00057534,120]
[342789314,1732140791720,-500.0,0.00057534,120]
[342789315,1732140791731,-500.0,0.00057534,120]
[342789316,1732140791741,-6444.84,0.00057534,120]
[342789317,1732140791750,-840.5,0.00057534,120]
[342789318,1732140791760,-1149.75,0.00057534,120]
[342789319,1732140791769,-538.19,0.00057534,120]
[342789320,1732140791779,-1918.75,0.00057534,120]
[342789321,1732140791789,-527.39,0.00057534,120]
[342789322,1732140791798,-500.0,0.00057534,120]
[342789323,1732140791931,-846.33,0.00057534,120]
[342789324,1732140791941,-1437.44,0.00057534,120]
[342789325,1732140791952,-655.97,0.00057534,120]
[342789326,1732140791961,-613.35,0.00057534,120]
[342789327,1732140791971,-1217.61,0.00057534,120]
[342789328,1732140791984,-7358.45,0.00057534,120]
[342789329,1732140791993,-1149.18,0.00057534,120]
[342789330,1732140792004,-500.0,0.00057534,120]
[342789331,1732140792013,-924.66,0.00057534,120]
[342789332,1732140792023,-1147.11,0.00057534,120]
[342789333,1732140792032,-1368.4,0.00057534,120]
[342789334,1732140792041,-500.0,0.00057534,120]
[342789335,1732140792051,-1974.94,0.00057534,120]
[342789336,1732140792060,-13034.59,0.00057534,120]
[342789337,1732140792069,-17457.35,0.00057534,120]
[342789338,1732140792078,-2237.64,0.00057534,120]
[342789339,1732140792088,-523.06681624,0.00057534,120]
[342789340,1732140792097,-2737.65,0.00057534,120]
[342789341,1732140792106,-551.05,0.00057534,120]
[342789342,1732140792116,-2479.1,0.00057534,120]
[342789343,1732140792125,-500.0,0.00057534,120]
[342789344,1732140792135,-3077.78,0.00057534,120]
[342789345,1732140792144,-500.0,0.00057534,120]
[342789346,1732140792153,-4393.1,0.00057534,120]
[342789347,1732140792166,-656.88,0.00057534,120]
[342789348,1732140792176,-1967.61,0.00057534,120]
[342789349,1732140792185,-1550.26,0.00057534,120]
[342789350,1732140792195,-500.0,0.00057534,120]
[342789351,1732140792206,-725.78,0.00057534,120]
[342789352,1732140792215,-5411.3,0.00057534,120]
[342789353,1732140792225,-996.23,0.00057534,120]
[342789354,1732140792236,-535.35,0.00057534,120]
[342789355,1732140792246,-500.0,0.00057534,120]
[342789356,1732140792255,-500.0,0.00057534,120]
[342789357,1732140792264,-559.06,0.00057534,120]
[342789358,1732140792273,-1127.77,0.00057534,120]
[342789359,1732140792283,-570.31,0.00057534,120]
[342789360,1732140792293,-7043.87,0.00057534,120]
[342789361,1732140792303,-580.25,0.00057534,120]
[342789362,1732140792313,-500.0,0.00057534,120]
[342789363,1732140792322,-8863.78,0.00057534,120]
[342789364,1732140792332,-604.62,0.00057534,120]
[342789365,1732140792341,-1500.0,0.00057534,120]
[342789366,1732140792351,-2040.5,0.00057534,120]
[342789367,1732140792360,-2305.42,0.00057534,120]
[342789368,1732140792369,-762.69,0.00057534,120]
[342789369,1732140792379,-713.08,0.00057534,120]
[342789370,1732140792387,-1604.28,0.00057534,120]
[342789371,1732140792397,-1101.03,0.00057534,120]
[342789372,1732140792407,-500.0,0.00057534,120]
[342789373,1732140792417,-500.0,0.00057534,120]
[342789374,1732140792427,-500.0,0.00057534,120]
[342789375,1732140792436,-1320.75,0.00057534,120]
[342789376,1732140792446,-1100.57,0.00057534,120]
[342789377,1732140792455,-500.0,0.00057534,120]
[342789378,1732140792465,-500.0,0.00057534,120]
[342789379,1732140792475,-500.0,0.00057534,120]
[342789380,1732140792485,-5594.76,0.00057534,120]
[342789381,1732140792494,-500.0,0.00057534,120]
[342789382,1732140792504,-561.2,0.00057534,120]
[342789383,1732140792514,-918.38,0.00057534,120]
[342789384,1732140792523,-3670.68,0.00057534,120]
[342789385,1732140792533,-500.0,0.00057534,120]
[342789386,1732140792542,-238.28406844,0.00057781,120]
[342789387,1732140792552,-250000.0,0.000578,120]
[342789388,1732140792562,-500.0,0.00057808,7]
[342789389,1732140792571,-500.0,0.00057808,120]
[342789390,1732140792580,-500.0,0.00057808,120]
[342789391,1732140792591,-155.055593,0.00057808,120]
[342789392,1732140792600,-260.413462,0.00057808,120]
[342789393,1732140792610,-210.928221,0.00057808,120]
[342789394,1732140792619,-789.82,0.00057808,120]
[342789395,1732140792629,-907.52,0.00057808,120]
[342789396,1732140792638,-676.32,0.00057808,120]
[342789397,1732140792647,-690.77,0.00057808,120]
[342789398,1732140792657,-500.0,0.00057808,120]
[342789399,1732140792666,-500.0,0.00057808,120]
[342789400,1732140792677,-500.0,0.00057808,120]
[342789401,1732140792687,-500.0,0.00057808,120]
[342789402,1732140792696,-500.0,0.00057808,120]
[342789403,1732140792706,-500.0,0.00057808,120]
[342789404,1732140792715,-500.0,0.00057808,30]
[342789405,1732140792726,-500.0,0.00057808,120]
[342789406,1732140792736,-500.0,0.00057808,120]
[342789407,1732140792746,-802.91,0.00057808,120]
[342789408,1732140792757,-1078.99,0.00057808,120]
[342789409,1732140792766,-1196.86,0.00057808,120]
[342789410,1732140792775,-1553.66,0.00057808,120]
[342789411,1732140792786,-500.0,0.00057808,120]
[342789412,1732140792795,-500.0,0.00057808,120]
[342789413,1732140792804,-1468.02,0.00057808,120]
[342789414,1732140792815,-500.0,0.00057808,120]
[342789415,1732140792825,-1204.33,0.00057808,120]